fUSD/lending_fUSD_20251222
["ID","MTS","AMOUNT","RATE_DAILY","PERIOD"]
[399478208,1766409044897,-151.0,0.00016438,2]
[399478209,1766409044906,-397.1771,0.00016438,2]
[399478210,1766409044916,-397.1771,0.00016438,2]
[399478211,1766409044925,-397.1771,0.00016438,2]
[399478212,1766409044934,-397.1771,0.00016438,2]
[399478213,1766409044945,-500.0,0.00016438,2]
[399478214,1766409044954,-585.01909235,0.00016438,2]
[399478215,1766409044963,-585.01909235,0.00016438,2]
[399478216,1766409044973,-585.01909235,0.00016438,2]
[399478217,1766409044983,-585.01909235,0.00016438,2]
[399478218,1766409044992,-585.01909235,0.00016438,2]
[399478219,1766409045002,-585.01909235,0.00016438,2]
[399478220,1766409045011,-585.01909235,0.00016438,2]
[399478221,1766409045021,-585.01909235,0.00016438,2]
[399478222,1766409045030,-585.01909235,0.00016438,2]
[399478223,1766409045039,-585.01909235,0.00016438,2]
[399478224,1766409045048,-585.01909235,0.00016438,2]
[399478225,1766409045057,-585.01909235,0.00016438,2]
[399478226,1766409045067,-585.01909235,0.00016438,2]
[399478227,1766409045076,-585.01909235,0.00016438,2]
[399478228,1766409045085,-585.01909235,0.00016438,2]
[399478229,1766409045094,-585.01909235,0.00016438,2]
[399478230,1766409045103,-585.01909235,0.00016438,2]
[399478231,1766409045113,-585.01909235,0.00016438,2]
[399478232,1766409045123,-585.01909235,0.00016438,2]
[399478233,1766409045132,-585.01909235,0.00016438,2]
[399478234,1766409045142,-585.01909235,0.00016438,2]
[399478235,1766409045151,-585.01909235,0.00016438,2]
[399478236,1766409045160,-585.01909235,0.00016438,2]
[399478237,1766409045169,-585.01909235,0.00016438,2]
[399478238,1766409045178,-585.01909235,0.00016438,2]
[399478239,1766409045187,-585.01909235,0.00016438,2]
[399478240,1766409045198,-585.01909235,0.00016438,2]
[399478241,1766409045209,-585.01909235,0.00016438,2]
[399478242,1766409045219,-585.01909235,0.00016438,2]
[399478243,1766409045229,-585.01909235,0.00016438,2]
[399478244,1766409045242,-585.01909235,0.00016438,2]
[399478245,1766409045252,-585.01909235,0.00016438,2]
[399478246,1766409045263,-585.01909235,0.00016438,2]
[399478247,1766409045272,-585.01909235,0.00016438,2]
[399478248,1766409045282,-585.01909235,0.00016438,2]
[399478249,1766409045293,-585.01909235,0.00016438,2]
[399478250,1766409045303,-585.01909235,0.00016438,2]
[399478251,1766409045313,-585.01909235,0.00016438,2]
[399478252,1766409045324,-585.01909235,0.00016438,2]
[399478253,1766409045333,-585.01909235,0.00016438,2]
[399478254,1766409045343,-585.01909235,0.00016438,2]
[399478255,1766409045352,-585.01909235,0.00016438,2]
[399478256,1766409045361,-585.01909235,0.00016438,2]
[399478257,1766409045370,-585.01909235,0.00016438,2]
[399478258,1766409045379,-585.01909235,0.00016438,2]
[399478259,1766409045388,-585.01909235,0.00016438,2]
[399478260,1766409045398,-585.01909235,0.00016438,2]
[399478261,1766409045410,-585.01909235,0.00016438,2]
[399478262,1766409045420,-585.01909235,0.00016438,2]
[399478263,1766409045432,-585.01909235,0.00016438,2]
[399478264,1766409045442,-585.01909235,0.00016438,2]
[399478265,1766409045453,-585.01909235,0.00016438,2]
[399478266,1766409045464,-585.01909235,0.00016438,2]
[399478267,1766409045475,-585.01909235,0.00016438,2]
[399478268,1766409045485,-585.01909235,0.00016438,2]
[399478269,1766409045494,-585.01909235,0.00016438,2]
[399478270,1766409045504,-585.01909235,0.00016438,2]
[399478271,1766409045513,-585.01909235,0.00016438,2]
[399478273,1766409045522,-585.01909235,0.00016438,2]
[399478274,1766409045795,-585.01909235,0.00016438,2]
[399478275,1766409045805,-585.01909235,0.00016438,2]
[399478276,1766409045814,-585.01909235,0.00016438,2]
[399478277,1766409045824,-585.01909235,0.00016438,2]
[399478278,1766409045834,-500.0,0.00016438,2]
[399478279,1766409045843,-500.0,0.00016438,2]
[399478280,1766409045853,-500.0,0.00016438,2]
[399478281,1766409045863,-500.0,0.00016438,2]
[399478282,1766409045873,-500.0,0.00016438,2]
[399478283,1766409045882,-500.0,0.00016438,2]
[399478284,1766409045892,-500.0,0.00016438,2]
[399478285,1766409045902,-2436.31027926,0.00016438,2]
[399478286,1766409045911,-2436.31027926,0.00016438,2]
[399478287,1766409045921,-2436.31027926,0.00016438,2]
[399478288,1766409045931,-2436.31027926,0.00016438,2]
[399478289,1766409045941,-2436.31027926,0.00016438,2]
[399478290,1766409045952,-2436.31027926,0.00016438,2]
[399478291,1766409045962,-2436.31027926,0.00016438,2]
[399478292,1766409045971,-2436.31027926,0.00016438,2]
[399478293,1766409045981,-2436.31027926,0.00016438,2]
[399478294,1766409045991,-2436.31027926,0.00016438,2]
[399478295,1766409046001,-2436.31027926,0.00016438,2]
[399478296,1766409046011,-2436.31027926,0.00016438,2]
[399478297,1766409046021,-2436.31027926,0.00016438,2]
[399478298,1766409046031,-2436.31027926,0.00016438,2]
[399478299,1766409046040,-2436.31027926,0.00016438,2]
[399478300,1766409046050,-2436.31027926,0.00016438,2]
[399478301,1766409046060,-2436.31027926,0.00016438,2]
[399478302,1766409046070,-2436.31027926,0.00016438,2]
[399478303,1766409046079,-2436.31027926,0.00016438,2]
[399478304,1766409046089,-2436.31027926,0.00016438,2]
[399478305,1766409046098,-2436.31027926,0.00016438,2]
[399478306,1766409046112,-2436.31027926,0.00016438,2]
[399478307,1766409046121,-2436.31027926,0.00016438,2]
[399478308,1766409046130,-2436.31027926,0.00016438,2]
[399478309,1766409046140,-2436.31027926,0.00016438,2]
[399478310,1766409046150,-2436.31027926,0.00016438,2]
[399478311,1766409046161,-151.0,0.00016438,2]
[399478312,1766409046171,-197.690307,0.00016438,2]
[399478313,1766409046181,-197.690307,0.00016438,2]
[399478314,1766409046191,-197.690307,0.00016438,2]
[399478315,1766409046201,-197.690307,0.00016438,2]
[399478316,1766409046210,-9668.25,0.00016438,2]
[399478317,1766409046220,-225.92,0.00016438,2]
[399478318,1766409046230,-151.0,0.00016438,2]
[399478319,1766409046239,-151.0,0.00016438,2]
[399478320,1766409046249,-588.59,0.00016438,2]
[399478321,1766409046259,-800.0,0.00016438,2]
[399478322,1766409046269,-151.0,0.00016438,2]
[399478323,1766409046280,-151.0,0.00016438,2]
[399478324,1766409046290,-151.0,0.00016438,2]
[399478325,1766409046299,-151.0,0.00016438,2]
[399478326,1766409046313,-151.0,0.00016438,2]
[399478327,1766409046322,-170.232126,0.00016438,2]
[399478328,1766409046332,-300.37,0.00016438,2]
[399478329,1766409046342,-150.0,0.00016438,2]
[399478330,1766409046351,-164.47,0.0001644,2]
[399478331,1766409046361,-164.47,0.0001644,2]
[399478332,1766409046371,-164.47,0.0001644,2]
[399478333,1766409046380,-164.47,0.0001644,2]
[399478334,1766409046390,-164.47,0.0001644,2]
[399478335,1766409046399,-164.47,0.0001644,2]
[399478336,1766409046409,-3966.9773441,0.00016442,2]
[399478337,1766409046419,-356.59,0.00016459,2]
[399478338,1766409046428,-500.0,0.00016465,2]
[399478339,1766409046438,-151.0,0.00016469,2]
[399478340,1766409046447,-346.92554585,0.00016469,2]
[399478341,1766409046458,-695.39793187,0.0001647,2]
[399478342,1766409046468,-599.60298507,0.0001647,2]
[399478343,1766409046478,-642.94,0.0001647,2]
[399478344,1766409046487,-233.51889341,0.00016471,2]
[399478345,1766409046497,-233.51889341,0.00016471,2]
[399478346,1766409046509,-640.24385345,0.00016471,2]
[399478347,1766409046518,-151.0,0.00016471,2]
[399478348,1766409046528,-500.0,0.00016493,2]
[399478349,1766409046537,-500.0,0.0001652,2]
[399478350,1766409046547,-4410.7037517,0.00016527,2]
[399478351,1766409046557,-157.68600299,0.00016537,5]
[399478352,1766409046567,-500.0,0.00016548,2]
[399478353,1766409046577,-500.0,0.00016575,2]
[399478354,1766409046586,-1760.606986,0.00016575,2]
[399478355,1766409046596,-166.68,0.00016585,2]
[399478356,1766409046606,-358.71934003,0.000166,2]
[399478357,1766409046615,-500.0,0.00016602,2]
[399478358,1766409046624,-1600.0,0.00016611,2]
[399478359,1766409046634,-500.0,0.0001663,2]
[399478360,1766409046643,-282.55,0.00016637,2]
[399478361,1766409046652,-200.0,0.00016641,2]
[399478362,1766409046662,-500.0,0.00016641,2]
[399478363,1766409046672,-200.0,0.00016641,2]
[399478364,1766409046682,-500.0,0.00016657,2]
[399478365,1766409046693,-168.0,0.00016659,2]
[399478366,1766409046702,-256.45885176,0.00016684,2]
[399478367,1766409046712,-500.0,0.00016685,2]
[399478368,1766409046722,-151.47080458,0.00016691,2]
[399478369,1766409046733,-505.01496115,0.00016712,2]
[399478370,1766409046742,-215.50049,0.00016712,2]
[399478371,1766409046752,-215.50049,0.00016712,2]
[399478372,1766409046764,-215.50049,0.00016712,2]
[399478373,1766409046774,-215.50049,0.00016712,2]
[399478374,1766409046784,-164.38,0.00016712,2]
[399478375,1766409046794,-152.01,0.00016736,2]
[399478376,1766409046804,-832.0,0.00016782,2]
[399478377,1766409046814,-832.0,0.00016783,2]
[399478378,1766409046824,-256.45885175,0.00016792,2]
[399478379,1766409046834,-168.0,0.00016798,2]
[399478380,1766409046843,-166.29,0.00016801,2]
[399478381,1766409046853,-1000.0,0.00016811,2]
[399478382,1766409046864,-832.0,0.00016829,2]
[399478383,1766409046873,-25000.0,0.00016856,3]
[399478384,1766409046883,-25000.0,0.00016865,3]
[399478385,1766409046901,-151.0,0.00016865,2]
[399478386,1766409046914,-197.690307,0.00016865,2]
[399478387,1766409046925,-197.690307,0.00016865,2]
[399478388,1766409046935,-197.690307,0.00016865,2]
[399478389,1766409046946,-197.690307,0.00016865,2]
[399478390,1766409046956,-25000.0,0.00016874,3]
[399478391,1766409046966,-832.0,0.00016882,2]
[399478392,1766409046976,-151.0,0.00016882,2]
[399478393,1766409046987,-151.0,0.00016882,2]
[399478394,1766409046997,-151.0,0.00016882,2]
[399478395,1766409047007,-151.0,0.00016882,2]
[399478396,1766409047017,-500.0,0.00016882,2]
[399478397,1766409047028,-25000.0,0.00016882,3]
[399478398,1766409047038,-151.0,0.00016891,2]
[399478399,1766409047049,-151.0,0.00016891,2]
[399478400,1766409047059,-151.0,0.00016891,2]
[399478401,1766409047069,-151.0,0.00016891,2]
[399478402,1766409047079,-397.1771,0.00016891,2]
[399478403,1766409047089,-397.1771,0.00016891,2]
[399478404,1766409047100,-397.1771,0.00016891,2]
[399478405,1766409047109,-397.1771,0.00016891,2]
[399478406,1766409047121,-25000.0,0.00016891,3]
[399478407,1766409047131,-25000.0,0.00016891,3]
[399478408,1766409047141,-25000.0,0.000169,3]
[399478409,1766409047151,-25000.0,0.000169,3]
[399478410,1766409047162,-256.45885175,0.000169,2]
[399478411,1766409047172,-3966.9773441,0.000169,2]
[399478412,1766409047182,-378.87402773,0.000169,2]
[399478413,1766409047192,-151.22567882,0.000169,2]
[399478414,1766409047203,-9434.27662128,0.000169,2]
[399478415,1766409047213,-249.45942711,0.000169,2]
[399478416,1766409047223,-832.0,0.00016926,2]
[399478417,1766409047232,-251.0,0.00016942,2]
[399478418,1766409047242,-155.641484,0.00016942,2]
[399478419,1766409047252,-197.690307,0.00016942,2]
[399478420,1766409047262,-197.690307,0.00016942,2]
[399478421,1766409047273,-197.690307,0.00016942,2]
[399478422,1766409047283,-197.690307,0.00016942,2]
[399478423,1766409047293,-168.0,0.00016958,2]
[399478424,1766409047302,-457.0,0.00016959,2]
[399478425,1766409047312,-168.0,0.00016966,2]
[399478426,1766409047323,-500.0,0.00016973,2]
[399478427,1766409047332,-500.0,0.00016973,2]
[399478428,1766409047342,-500.0,0.00016973,2]
[399478429,1766409047352,-500.0,0.00016973,2]
[399478430,1766409047362,-500.0,0.00016973,2]
[399478431,1766409047372,-179.47316237,0.00016973,2]
[399478432,1766409047381,-500.0,0.00016973,2]
[399478433,1766409047391,-500.0,0.00016973,2]
[399478434,1766409047400,-500.0,0.00016973,2]
[399478435,1766409047410,-500.0,0.00016973,2]
[399478436,1766409047420,-500.0,0.00016973,2]
[399478437,1766409047432,-500.0,0.00016973,2]
[399478438,1766409047447,-500.0,0.00016973,2]
[399478439,1766409047459,-500.0,0.00016973,2]
[399478440,1766409047469,-500.0,0.00016973,2]
[399478441,1766409047480,-500.0,0.00016973,2]
[399478442,1766409047489,-323.69632607,0.00016973,2]
[399478443,1766409047500,-500.0,0.00016973,2]
[399478444,1766409047511,-187.58612974,0.00016973,2]
[399478445,1766409047521,-473.51090272,0.00016973,2]
[399478446,1766409047531,-500.0,0.00016973,2]
[399478447,1766409047541,-607.27794766,0.00016973,2]
[399478448,1766409047552,-500.0,0.00016973,2]
[399478449,1766409047564,-500.0,0.00016973,2]
[399478450,1766409047574,-500.0,0.00016973,2]
[399478451,1766409047583,-500.0,0.00016973,2]
[399478452,1766409047593,-192.33860374,0.00016973,2]
[399478453,1766409047603,-500.0,0.00016973,2]
[399478454,1766409047612,-500.0,0.00016973,2]
[399478455,1766409047622,-500.0,0.00016973,2]
[399478456,1766409047632,-500.0,0.00016973,2]
[399478457,1766409047641,-500.0,0.00016973,2]
[399478458,1766409047652,-220.3394429,0.00016973,2]
[399478459,1766409047663,-523.16788729,0.00016973,2]
[399478460,1766409047673,-500.0,0.00016973,2]
[399478461,1766409047683,-516.53532775,0.00016973,2]
[399478462,1766409047696,-500.0,0.00016973,2]
[399478463,1766409047706,-517.55500559,0.00016973,2]
[399478464,1766409047716,-500.0,0.00016973,2]
[399478465,1766409047727,-500.0,0.00016973,2]
[399478466,1766409047737,-500.0,0.00016973,2]
[399478467,1766409047747,-500.0,0.00016973,2]
[399478468,1766409047757,-500.0,0.00016973,2]
[399478469,1766409047768,-500.0,0.00016973,2]
[399478470,1766409047779,-500.0,0.00016973,2]
[399478471,1766409047789,-468.6988227,0.00016973,2]
[399478472,1766409047799,-500.16141079,0.00016973,2]
[399478473,1766409047808,-500.19873097,0.00016973,2]
[399478474,1766409047818,-500.0,0.00016973,2]
[399478475,1766409047831,-166.96828513,0.00016973,2]
[399478476,1766409047842,-500.0,0.00016973,2]
[399478477,1766409047851,-500.0,0.00016973,2]
[399478478,1766409047861,-500.0,0.00016973,2]
[399478479,1766409047871,-500.0,0.00016973,2]
[399478480,1766409047881,-500.0,0.00016973,2]
[399478481,1766409047891,-500.45563157,0.00016973,2]
[399478482,1766409047901,-500.0,0.00016973,2]
[399478483,1766409047911,-500.0,0.00016973,2]
[399478484,1766409047922,-344.75321982,0.00016973,2]
[399478485,1766409047932,-161.12986217,0.00016973,2]
[399478486,1766409047942,-500.0,0.00016973,2]
[399478487,1766409047952,-500.0,0.00016973,2]
[399478488,1766409047962,-151.0,0.00016973,2]
[399478489,1766409047978,-150.0,0.00016973,2]
[399478490,1766409048000,-150.0,0.00016973,2]
[399478491,1766409048016,-151.0,0.00016986,2]
[399478492,1766409048028,-151.0,0.00016986,2]
[399478493,1766409048039,-151.0,0.00016986,2]
[399478494,1766409048049,-151.0,0.00016986,2]
[399478495,1766409048059,-53107.26,0.00016986,2]
[399478496,1766409048069,-150.0,0.00016986,2]
[399478497,1766409048079,-150.0,0.00016986,2]
[399478498,1766409048088,-150.0,0.00016986,2]
[399478499,1766409048098,-590.29961711,0.0001699,2]
[399478500,1766409048108,-590.29961711,0.0001699,2]
[399478501,1766409048121,-828.7,0.00016993,2]
[399478502,1766409048131,-500.0,0.00016996,2]
[399478503,1766409048141,-2520.97,0.00016997,2]
[399478504,1766409048151,-2520.97,0.00016999,2]
[399478505,1766409048161,-2520.97,0.00016999,2]
[399478506,1766409048172,-2520.97,0.00016999,2]
[399478507,1766409048181,-2520.97,0.00016999,2]
[399478508,1766409048191,-2520.97,0.00016999,2]
[399478509,1766409048201,-2520.97,0.00016999,2]
[399478510,1766409048210,-2520.97,0.00016999,2]
[399478511,1766409048220,-2520.97,0.00016999,2]
[399478512,1766409048233,-2520.97,0.00016999,2]
[399478513,1766409048404,-2520.97,0.00016999,2]
[399478514,1766409048414,-2520.97,0.00016999,2]
[399478515,1766409048425,-2520.97,0.00016999,2]
[399478516,1766409048436,-2520.97,0.00016999,2]
[399478517,1766409048446,-2520.97,0.00016999,2]
[399478518,1766409048456,-2520.97,0.00016999,2]
[399478519,1766409048465,-2520.97,0.00016999,2]
[399478520,1766409048474,-2520.97,0.00016999,2]
[399478521,1766409048489,-2520.97,0.00016999,2]
[399478522,1766409048499,-2521.00353834,0.00016999,2]
[399478523,1766409048509,-300.0,0.00016999,2]
[399478524,1766409048519,-300.0,0.00016999,2]
[399478525,1766409048529,-681.43055394,0.00016999,2]
[399478526,1766409048538,-666.0,0.00016999,2]
[399478527,1766409048548,-300.0,0.00016999,2]
[399478528,1766409048557,-215.50049,0.00016999,2]
[399478529,1766409048567,-215.50049,0.00016999,2]
[399478530,1766409048576,-215.50049,0.00016999,2]
[399478531,1766409048585,-215.50049,0.00016999,2]
[399478532,1766409048595,-666.0,0.00016999,2]
[399478533,1766409048604,-212.76268,0.00016999,2]
[399478534,1766409048613,-151.0,0.00016999,2]
[399478535,1766409048623,-151.0,0.00016999,2]
[399478536,1766409048635,-151.0,0.00016999,2]
[399478537,1766409048644,-397.1771,0.00016999,2]
[399478538,1766409048653,-397.1771,0.00016999,2]
[399478539,1766409048663,-397.1771,0.00016999,2]
[399478540,1766409048672,-397.1771,0.00016999,2]
[399478541,1766409048683,-500.0,0.00016999,2]
[399478542,1766409048695,-500.0,0.00016999,2]
[399478543,1766409048706,-500.0,0.00016999,2]
[399478544,1766409048715,-500.0,0.00016999,2]
[399478545,1766409048727,-500.0,0.00016999,2]
[399478546,1766409048736,-500.0,0.00016999,2]
[399478547,1766409048746,-578.59832559,0.00016999,2]
[399478548,1766409048755,-300.0,0.00016999,2]
[399478549,1766409048766,-6587863.87515699,0.00017,2]
[399478550,1766409049351,-14026.50233629,0.00017,2]
[399478551,1766409049364,-1557.38467929,0.00017,2]
[399478552,1766409050214,-178.47,0.00013973,2]
[399478553,1766409050224,-659.33,0.00014795,2]
[399478554,1766409050233,-554.01,0.00014795,2]
[399478555,1766409050243,-170.7,0.00014795,2]
[399478556,1766409050253,-150.0,0.00014795,2]
[399478557,1766409050263,-924.73153188,0.00014827,2]
[399478558,1766409050272,-247.17722841,0.00015068,2]
[399478559,1766409050283,-911.0,0.00015774,2]
[399478560,1766409050292,-2210.90134156,0.000168,2]
[399478561,1766409050302,-2210.90134156,0.0001682,2]
[399478562,1766409050312,-2210.90134156,0.0001684,2]
[399478563,1766409050321,-2210.90134156,0.0001686,2]
[399478564,1766409050331,-2210.90134156,0.0001688,2]
[399478565,1766409050340,-2210.90134156,0.000169,2]
[399478566,1766409050350,-288566.01809377,0.00017,2]
[399478567,1766409050359,-548874.2909153,0.00017,2]
[399478568,1766409050370,-1182.47375131,0.00017,2]
[399478569,1766409050389,-305.65000001,0.00017,2]
[399478570,1766409050609,-284.07870322,0.000169,2]
[399478571,1766409050620,-1495.92129678,0.00017,2]
[399478572,1766409693449,753.84,0.00022,30]
[399478573,1766409770835,1000.0,0.00022,30]
[399478574,1766409817709,1000.0,0.00022,30]
[399478575,1766409872495,503.0,0.00022,30]
[399478576,1766409928815,162.78,7.725e-05,2]
[399478579,1766410115447,8718.21763523,0.0001,2]
[399478580,1766410231618,-267.43106957,0.000107,2]
[399478581,1766410231641,-985.09829802,0.000108,2]
[399478582,1766410231664,-5532.68353942,0.00011,2]
[399478583,1766410231685,-162.78,0.00011587,2]
[399478584,1766410231706,-250.0,0.0001177,2]
[399478587,1766410231728,-195.0,0.0001177,2]
[399478589,1766410231749,-5407.00709299,0.00012605,2]
[399478594,1766410231806,-392.46860701,0.00012605,2]
[399478596,1766410231815,-150.0,0.00013683,2]
[399478598,1766410231824,-578.20924308,0.00013684,2]
[399478599,1766410231834,-194.72792766,0.00013684,2]
[399478600,1766410231844,-572.21422225,0.00013684,2]
[399478601,1766410231866,-77.04981895,0.00013684,2]
[399478602,1766410231875,-151.0,0.00013684,2]
[399478603,1766410231886,-200.0,0.00013684,2]
[399478604,1766410231896,-207.4,0.00013684,2]
[399478605,1766410231905,-215.0738,0.00013684,2]
[399478606,1766410231914,-223.0315306,0.00013684,2]
[399478607,1766410231924,-221.93929756,0.00013684,2]
[399478608,1766410231935,-9.34439967,0.00013684,2]
[399478609,1766410231945,-239.84119403,0.00013684,2]
[399478610,1766410231955,-248.71531821,0.00013684,2]
[399478611,1766410231964,-90.11371597,0.00013684,2]
[399478612,1766410231976,-123.16298308,0.00013684,2]
[399478613,1766410231985,-773.52492997,0.00013684,2]
[399478614,1766410231995,-322.6107,0.00013684,2]
[399478615,1766410232004,-1000.0,0.00013699,2]
[399478616,1766410232014,-201.93286099,0.00014232,2]
[399478617,1766410232024,-745.0,0.00014351,2]
[399478618,1766410232036,-311.0,0.00014351,2]
[399478619,1766410232046,-198.0,0.0001441,2]
[399478620,1766410232055,-925.0,0.00014745,2]
[399478621,1766410232065,-209.40437684,0.0001478,2]
[399478622,1766410232075,-500.0,0.00014822,2]
[399478623,1766410232085,-169.43415984,0.00015016,2]
[399478624,1766410232095,-334.5472959,0.00015053,2]
[399478625,1766410232107,-1000.0,0.00015299,2]
[399478626,1766410232117,-150.99,0.00015328,2]
[399478628,1766410232127,-299.99,0.00015328,2]
[399478630,1766410232137,-217.15233878,0.00015328,2]
[399478632,1766410232147,-162.78,0.0001545,2]
[399478634,1766410232158,-500.0,0.00015463,2]
[399478636,1766410232168,-151.0,0.00015544,2]
[399478637,1766410232178,-151.0,0.00015545,2]
[399478639,1766410232188,-151.47080458,0.00015794,2]
[399478641,1766410232197,-1098.0,0.00015807,2]
[399478643,1766410232207,-225.18697532,0.00015876,2]
[399478645,1766410232216,-161.01,0.00015962,2]
[399478646,1766410232226,-320.12427134,0.00016,3]
[399478648,1766410232235,-453.02744066,0.00016,4]
[399478650,1766410232247,-10312.61901979,0.00016,4]
[399478653,1766410232270,-329.76487325,0.00016,4]
[399478655,1766410232281,-1768.10670656,0.00016,4]
[399478674,1766410237837,-1313.57776,0.00016,4]
[399478675,1766410237939,-421.41626955,0.00016,4]
[399478676,1766410237951,-751.01384628,0.00016,4]
[399478683,1766410240083,-655.02304365,0.00016,4]
[399478684,1766410240098,-309.57900027,0.00016,4]
[399478685,1766410240111,-31105.56224498,0.00016,4]
[399478686,1766410240121,-174.369,0.00016011,2]
[399478687,1766410240131,-791.211,0.00016011,2]
[399478688,1766410240140,-396.69773441,0.00016081,2]
[399478689,1766410240149,-151.0,0.00016142,2]
[399478690,1766410240159,-200.0,0.00016172,2]
[399478691,1766410240168,-250.0,0.00016172,2]
[399478692,1766410240178,-250.0,0.00016172,2]
[399478693,1766410240187,-151.0,0.00016172,2]
[399478694,1766410240197,-151.0,0.00016172,2]
[399478695,1766410240206,-670.58624095,0.00016172,2]
[399478696,1766410240215,-250.0,0.00016172,2]
[399478697,1766410240224,-250.0,0.00016172,2]
[399478698,1766410240233,-151.0,0.00016172,2]
[399478699,1766410240243,-250.0,0.00016172,2]
[399478700,1766410240252,-250.0,0.00016172,2]
[399478701,1766410240262,-151.0,0.00016172,2]
[399478702,1766410240271,-250.0,0.00016172,2]
[399478703,1766410240280,-250.0,0.00016172,2]
[399478704,1766410240290,-151.0,0.00016172,2]
[399478705,1766410240302,-160.55594756,0.00016172,2]
[399478706,1766410240312,-250.0,0.00016172,2]
[399478707,1766410240321,-151.0,0.00016172,2]
[399478708,1766410240330,-250.0,0.00016172,2]
[399478709,1766410240339,-250.0,0.00016172,2]
[399478710,1766410240348,-250.0,0.00016172,2]
[399478711,1766410240358,-151.0,0.00016172,2]
[399478712,1766410240368,-250.0,0.00016172,2]
[399478713,1766410240378,-151.0,0.00016172,2]
[399478714,1766410240387,-250.0,0.00016172,2]
[399478715,1766410240398,-500.0,0.00016172,2]
[399478716,1766410240407,-250.0,0.00016172,2]
[399478717,1766410240417,-250.0,0.00016172,2]
[399478718,1766410240426,-151.0,0.00016172,2]
[399478719,1766410240435,-500.0,0.00016172,2]
[399478720,1766410240446,-250.0,0.00016172,2]
[399478721,1766410240455,-250.0,0.00016172,2]
[399478722,1766410240465,-151.0,0.00016172,2]
[399478723,1766410240475,-500.0,0.00016172,2]
[399478724,1766410240484,-250.0,0.00016172,2]
[399478725,1766410240494,-250.0,0.00016172,2]
[399478726,1766410240506,-151.0,0.00016172,2]
[399478727,1766410240516,-500.0,0.00016172,2]
[399478731,1766410240863,-250.0,0.00016172,2]
[399478732,1766410240893,-250.0,0.00016172,2]
[399478733,1766410240903,-151.0,0.00016172,2]
[399478734,1766410240912,-500.0,0.00016172,2]
[399478735,1766410240922,-250.0,0.00016172,2]
[399478736,1766410240932,-250.0,0.00016172,2]
[399478737,1766410240942,-151.0,0.00016172,2]
[399478738,1766410240952,-500.0,0.00016172,2]
[399478739,1766410240961,-250.0,0.00016172,2]
[399478740,1766410240971,-250.0,0.00016172,2]
[399478741,1766410240980,-151.0,0.00016172,2]
[399478742,1766410240989,-500.0,0.00016172,2]
[399478743,1766410240999,-500.0,0.00016172,2]
[399478744,1766410241009,-500.0,0.00016172,2]
[399478745,1766410241019,-500.0,0.00016172,2]
[399478746,1766410241028,-500.0,0.00016172,2]
[399478747,1766410241041,-500.0,0.00016172,2]
[399478748,1766410241051,-500.0,0.00016172,2]
[399478749,1766410241061,-500.0,0.00016172,2]
[399478750,1766410241077,-620.0,0.00016172,2]
[399478751,1766410241097,-500.0,0.00016172,2]
[399478752,1766410241111,-500.0,0.00016172,2]
[399478753,1766410241121,-500.0,0.00016172,2]
[399478754,1766410241131,-500.0,0.00016172,2]
[399478755,1766410241141,-500.0,0.00016172,2]
[399478756,1766410241150,-500.0,0.00016172,2]
[399478757,1766410241160,-500.0,0.00016172,2]
[399478758,1766410241170,-500.0,0.00016172,2]
[399478759,1766410241180,-500.0,0.00016172,2]
[399478760,1766410241190,-500.0,0.00016172,2]